[Event "Titled Tuesday Blitz October 12 2021"]
[White "Nakamura, Hikaru"]
[Black "Macovei, Andrei"]
[WhiteFideId "2016192"]
[BlackFideId "13904680"]
[WhiteElo "2884"]
[BlackElo "2389"]
[Result "1-0"]
[Round "03"]
[TimeControl "180+1"]
[Date "2021.10.12"]
[WhiteClock "0:01:26"]
[BlackClock "0:00:07"]

1. Nf3 {[%clk 0:03:00]}  Nf6 {[%clk 0:02:56]} 2. b3 {[%clk 0:02:49]}  d5 {[%clk 0:02:47]} 3. Bb2 {[%clk 0:02:50]}  c5 {[%clk 0:02:46]} 4. e3 {[%clk 0:02:51]}  e6 {[%clk 0:02:43]} 5. d4 {[%clk 0:02:47]}  Nc6 {[%clk 0:02:43]} 6. Bd3 {[%clk 0:02:47]}  Qc7 {[%clk 0:02:42]} 7. O-O {[%clk 0:02:39]}  cxd4 {[%clk 0:02:41]} 8. Nxd4 {[%clk 0:02:40]}  Be7 {[%clk 0:02:24]} 9. Nxc6 {[%clk 0:02:36]}  bxc6 {[%clk 0:02:22]} 10. Nd2 {[%clk 0:02:32]}  e5 {[%clk 0:02:13]} 11. c4 {[%clk 0:02:31]}  e4 {[%clk 0:02:12]} 12. Be2 {[%clk 0:02:31]}  O-O {[%clk 0:02:12]} 13. Rc1 {[%clk 0:02:31]}  Qa5 {[%clk 0:02:08]} 14. a3 {[%clk 0:02:22]}  Be6 {[%clk 0:01:49]} 15. b4 {[%clk 0:02:15]}  Qb6 {[%clk 0:01:48]} 16. Nb3 {[%clk 0:02:11]}  Rfd8 {[%clk 0:01:42]} 17. Qc2 {[%clk 0:02:10]}  Rac8 {[%clk 0:01:30]} 18. Bd4 {[%clk 0:01:57]}  Qb8 {[%clk 0:01:29]} 19. h3 {[%clk 0:01:52]}  h6 {[%clk 0:00:57]} 20. Rfd1 {[%clk 0:01:50]}  Nd7 {[%clk 0:00:41]} 21. cxd5 {[%clk 0:01:37]}  cxd5 {[%clk 0:00:38]} 22. Qb2 {[%clk 0:01:37]}  Rxc1 {[%clk 0:00:36]} 23. Rxc1 {[%clk 0:01:32]}  Bf8 {[%clk 0:00:37]} 24. Na5 {[%clk 0:01:32]}  Qa8 {[%clk 0:00:14]} 25. Nc6 {[%clk 0:01:30]}  Rc8 {[%clk 0:00:14]} 26. Nxa7 {[%clk 0:01:30]}  Rxc1+ {[%clk 0:00:14]} 27. Qxc1 {[%clk 0:01:31]}  Qb7 {[%clk 0:00:11]} 28. Qc8 {[%clk 0:01:28]}  Qxc8 {[%clk 0:00:10]} 29. Nxc8 {[%clk 0:01:29]}  Nb8 {[%clk 0:00:10]} 30. Na7 {[%clk 0:01:28]}  Bd7 {[%clk 0:00:10]} 31. Be5 {[%clk 0:01:26]}  Nc6 {[%clk 0:00:09]} 32. Nxc6 {[%clk 0:01:26]}  Bxc6 {[%clk 0:00:10]} 33. b5 {[%clk 0:01:26]}  Bb7 {[%clk 0:00:10]} 34. a4 {[%clk 0:01:27]}  Bb4 {[%clk 0:00:10]} 35. Bc7 {[%clk 0:01:27]}  Kf8 {[%clk 0:00:09]} 36. a5 {[%clk 0:01:26]}  Ke7 {[%clk 0:00:09]} 37. a6 {[%clk 0:01:27]}  Kd7 {[%clk 0:00:09]} 38. Be5 {[%clk 0:01:27]}  Ba8 {[%clk 0:00:07]} 39. b6 {[%clk 0:01:24]}  Kc6 {[%clk 0:00:06]} 40. b7 {[%clk 0:01:24]}  Bxb7 {[%clk 0:00:06]} 41. axb7 {[%clk 0:01:25]}  Kxb7 {[%clk 0:00:07]} 42. Bxg7 {[%clk 0:01:26]} 1-0


[Site "https://www.chess.com"]

[Event "Titled Tuesday Blitz October 12 2021"]
[White "Nogerbek, Kazybek"]
[Black "Piesik, Piotr"]
[WhiteFideId "13710427"]
[BlackFideId "1136194"]
[WhiteElo "2436"]
[BlackElo "2336"]
[Result "1-0"]
[Round "03"]
[TimeControl "180+1"]
[Date "2021.10.12"]
[WhiteClock "0:00:17"]
[BlackClock "0:01:04"]

1. d4 {[%clk 0:03:00]}  c5 {[%clk 0:02:59]} 2. d5 {[%clk 0:03:00]}  e5 {[%clk 0:02:59]} 3. Nc3 {[%clk 0:02:58]}  d6 {[%clk 0:03:00]} 4. e4 {[%clk 0:02:54]}  Be7 {[%clk 0:03:00]} 5. Bb5+ {[%clk 0:02:46]}  Nd7 {[%clk 0:03:00]} 6. a4 {[%clk 0:02:44]}  Bg5 {[%clk 0:02:59]} 7. Nf3 {[%clk 0:02:44]}  Bxc1 {[%clk 0:02:59]} 8. Qxc1 {[%clk 0:02:45]}  Ne7 {[%clk 0:03:00]} 9. Nd2 {[%clk 0:02:35]}  O-O {[%clk 0:02:59]} 10. Bd3 {[%clk 0:02:29]}  Ng6 {[%clk 0:02:57]} 11. Nc4 {[%clk 0:02:24]}  Nf6 {[%clk 0:02:56]} 12. Nb5 {[%clk 0:02:15]}  Ne8 {[%clk 0:02:55]} 13. h4 {[%clk 0:02:09]}  Nxh4 {[%clk 0:02:49]} 14. Kf1 {[%clk 0:02:03]}  a6 {[%clk 0:02:36]} 15. Nbxd6 {[%clk 0:01:52]}  Nxd6 {[%clk 0:02:33]} 16. Nxd6 {[%clk 0:01:53]}  Nxg2 {[%clk 0:02:26]} 17. Nxb7 {[%clk 0:01:32]}  Bxb7 {[%clk 0:02:25]} 18. Kxg2 {[%clk 0:01:32]}  f5 {[%clk 0:02:23]} 19. c4 {[%clk 0:01:33]}  f4 {[%clk 0:02:22]} 20. Kf3 {[%clk 0:01:14]}  Rf6 {[%clk 0:02:18]} 21. Qc3 {[%clk 0:01:11]}  Qd6 {[%clk 0:02:17]} 22. Rag1 {[%clk 0:01:10]}  Re8 {[%clk 0:02:13]} 23. Ke2 {[%clk 0:01:04]}  Rg6 {[%clk 0:02:04]} 24. a5 {[%clk 0:01:00]}  Bc8 {[%clk 0:02:01]} 25. Kd2 {[%clk 0:00:57]}  Bd7 {[%clk 0:01:56]} 26. Qb3 {[%clk 0:00:51]}  Rb8 {[%clk 0:01:53]} 27. Rxg6 {[%clk 0:00:47]}  hxg6 {[%clk 0:01:49]} 28. Qc3 {[%clk 0:00:48]}  Rb4 {[%clk 0:01:47]} 29. b3 {[%clk 0:00:45]}  g5 {[%clk 0:01:43]} 30. Bc2 {[%clk 0:00:44]}  g4 {[%clk 0:01:42]} 31. Rh5 {[%clk 0:00:44]}  g3 {[%clk 0:01:36]} 32. fxg3 {[%clk 0:00:43]}  Rb8 {[%clk 0:01:09]} 33. Qxe5 {[%clk 0:00:18]}  Qxe5 {[%clk 0:01:08]} 34. Rxe5 {[%clk 0:00:19]}  fxg3 {[%clk 0:01:07]} 35. Rg5 {[%clk 0:00:19]}  Rf8 {[%clk 0:01:06]} 36. Rxg3 {[%clk 0:00:19]}  Rf2+ {[%clk 0:01:06]} 37. Kc3 {[%clk 0:00:19]}  Kf7 {[%clk 0:01:05]} 38. e5 {[%clk 0:00:19]}  Bf5 {[%clk 0:01:04]} 39. e6+ {[%clk 0:00:17]}  Kf6 {[%clk 0:01:03]} 40. Bxf5 {[%clk 0:00:17]}  Rxf5 {[%clk 0:01:04]} 41. b4 {[%clk 0:00:16]}  cxb4+ {[%clk 0:01:03]} 42. Kxb4 {[%clk 0:00:17]}  g5 {[%clk 0:01:04]} 43. Kc5 {[%clk 0:00:17]} 1-0


[Site "https://www.chess.com"]

[Event "Titled Tuesday Blitz October 12 2021"]
[White "Smirnov, Pavel"]
[Black "Shuvalov, Evgenij"]
[WhiteFideId "4123425"]
[BlackFideId "4187237"]
[WhiteElo "2571"]
[BlackElo "2129"]
[Result "0-1"]
[Round "03"]
[TimeControl "180+1"]
[Date "2021.10.12"]
[WhiteClock "0:00:03"]
[BlackClock "0:00:09"]

1. d4 {[%clk 0:03:00]}  Nf6 {[%clk 0:02:59]} 2. c4 {[%clk 0:02:57]}  g6 {[%clk 0:02:59]} 3. Nf3 {[%clk 0:02:53]}  Bg7 {[%clk 0:02:58]} 4. g3 {[%clk 0:02:51]}  c6 {[%clk 0:02:58]} 5. Bg2 {[%clk 0:02:50]}  d5 {[%clk 0:02:58]} 6. b3 {[%clk 0:02:51]}  O-O {[%clk 0:02:53]} 7. O-O {[%clk 0:02:48]}  a5 {[%clk 0:02:52]} 8. Nc3 {[%clk 0:02:47]}  Ne4 {[%clk 0:02:49]} 9. Bb2 {[%clk 0:02:47]}  Nxc3 {[%clk 0:02:40]} 10. Bxc3 {[%clk 0:02:48]}  a4 {[%clk 0:02:41]} 11. cxd5 {[%clk 0:02:43]}  cxd5 {[%clk 0:02:39]} 12. bxa4 {[%clk 0:02:43]}  Bd7 {[%clk 0:02:32]} 13. a5 {[%clk 0:02:39]}  Nc6 {[%clk 0:02:31]} 14. Ne5 {[%clk 0:02:28]}  Be8 {[%clk 0:02:03]} 15. Qb3 {[%clk 0:02:26]}  e6 {[%clk 0:01:20]} 16. Qxb7 {[%clk 0:02:22]}  Nxa5 {[%clk 0:01:17]} 17. Qb2 {[%clk 0:02:02]}  f6 {[%clk 0:01:00]} 18. Nd3 {[%clk 0:02:01]}  Nc4 {[%clk 0:01:00]} 19. Qc1 {[%clk 0:02:01]}  Bf7 {[%clk 0:00:55]} 20. Nc5 {[%clk 0:01:54]}  Qd6 {[%clk 0:00:48]} 21. a4 {[%clk 0:01:53]}  Rfc8 {[%clk 0:00:46]} 22. a5 {[%clk 0:01:50]}  e5 {[%clk 0:00:46]} 23. e3 {[%clk 0:01:49]}  f5 {[%clk 0:00:43]} 24. Qc2 {[%clk 0:01:46]}  f4 {[%clk 0:00:41]} 25. Rfb1 {[%clk 0:01:41]}  fxe3 {[%clk 0:00:37]} 26. Nb7 {[%clk 0:01:11]}  Qd7 {[%clk 0:00:26]} 27. dxe5 {[%clk 0:01:07]}  exf2+ {[%clk 0:00:18]} 28. Qxf2 {[%clk 0:01:05]}  Nxe5 {[%clk 0:00:15]} 29. Bd4 {[%clk 0:01:04]}  Ng4 {[%clk 0:00:15]} 30. Qf4 {[%clk 0:00:56]}  Bh6 {[%clk 0:00:13]} 31. Qd6 {[%clk 0:00:52]}  Qf5 {[%clk 0:00:11]} 32. Rf1 {[%clk 0:00:21]}  Qd3 {[%clk 0:00:11]} 33. Qb6 {[%clk 0:00:15]}  Ra6 {[%clk 0:00:10]} 34. Qxa6 {[%clk 0:00:09]}  Qxa6 {[%clk 0:00:09]} 35. Rab1 {[%clk 0:00:03]}  Qd3 {[%clk 0:00:09]} 0-1


[Site "https://www.chess.com"]

[Event "Titled Tuesday Blitz October 12 2021"]
[White "Tabatabaei, M. Amin"]
[Black "Carnicelli, Valerio"]
[WhiteFideId "12521213"]
[BlackFideId "856185"]
[WhiteElo "2555"]
[BlackElo "2332"]
[Result "1-0"]
[Round "03"]
[TimeControl "180+1"]
[Date "2021.10.12"]
[WhiteClock "0:00:20"]
[BlackClock "0:00:03"]

1. b3 {[%clk 0:03:00]}  d5 {[%clk 0:02:59]} 2. Bb2 {[%clk 0:02:59]}  Bg4 {[%clk 0:02:59]} 3. f3 {[%clk 0:02:59]}  Bf5 {[%clk 0:02:59]} 4. e4 {[%clk 0:02:48]}  dxe4 {[%clk 0:02:59]} 5. Nc3 {[%clk 0:02:48]}  Nf6 {[%clk 0:02:54]} 6. Qe2 {[%clk 0:02:47]}  Nc6 {[%clk 0:02:50]} 7. Nxe4 {[%clk 0:02:35]}  Nxe4 {[%clk 0:02:42]} 8. fxe4 {[%clk 0:02:36]}  Bg6 {[%clk 0:02:41]} 9. Nf3 {[%clk 0:02:34]}  e6 {[%clk 0:02:39]} 10. O-O-O {[%clk 0:02:34]}  a5 {[%clk 0:02:36]} 11. a4 {[%clk 0:02:31]}  f6 {[%clk 0:02:23]} 12. d4 {[%clk 0:02:25]}  Qc8 {[%clk 0:02:00]} 13. g4 {[%clk 0:02:19]}  Be7 {[%clk 0:01:58]} 14. h4 {[%clk 0:02:19]}  Bf7 {[%clk 0:01:54]} 15. g5 {[%clk 0:02:17]}  Bh5 {[%clk 0:01:44]} 16. Qe3 {[%clk 0:02:04]}  O-O {[%clk 0:01:40]} 17. Bc4 {[%clk 0:01:55]}  Kh8 {[%clk 0:01:34]} 18. Rdf1 {[%clk 0:01:54]}  Bxf3 {[%clk 0:01:18]} 19. Rxf3 {[%clk 0:01:50]}  e5 {[%clk 0:01:19]} 20. gxf6 {[%clk 0:00:55]}  Bxf6 {[%clk 0:01:18]} 21. Rxf6 {[%clk 0:00:49]}  Rxf6 {[%clk 0:01:14]} 22. dxe5 {[%clk 0:00:46]}  Re6 {[%clk 0:00:56]} 23. Qg3 {[%clk 0:00:45]}  Qd7 {[%clk 0:00:49]} 24. h5 {[%clk 0:00:45]}  h6 {[%clk 0:00:48]} 25. Bxe6 {[%clk 0:00:38]}  Qxe6 {[%clk 0:00:48]} 26. Rg1 {[%clk 0:00:27]}  Rg8 {[%clk 0:00:45]} 27. Qg6 {[%clk 0:00:25]}  Nd8 {[%clk 0:00:38]} 28. Rd1 {[%clk 0:00:22]}  Re8 {[%clk 0:00:21]} 29. Qf5 {[%clk 0:00:20]}  Nc6 {[%clk 0:00:11]} 30. Rd7 {[%clk 0:00:20]}  Qxf5 {[%clk 0:00:08]} 31. exf5 {[%clk 0:00:21]}  Nxe5 {[%clk 0:00:09]} 32. Rxc7 {[%clk 0:00:21]}  Nf3 {[%clk 0:00:08]} 33. Bxg7+ {[%clk 0:00:20]}  Kg8 {[%clk 0:00:06]} 34. f6 {[%clk 0:00:21]}  Re1+ {[%clk 0:00:05]} 35. Kb2 {[%clk 0:00:21]}  Ng5 {[%clk 0:00:05]} 36. Bxh6 {[%clk 0:00:21]}  Nf7 {[%clk 0:00:05]} 37. Bg7 {[%clk 0:00:21]}  Rh1 {[%clk 0:00:03]} 38. h6 {[%clk 0:00:22]}  Nxh6 {[%clk 0:00:03]} 39. Rc8+ {[%clk 0:00:19]}  Kh7 {[%clk 0:00:03]} 40. Rh8+ {[%clk 0:00:20]} 1-0


[Site "https://www.chess.com"]

[Event "Titled Tuesday Blitz October 12 2021"]
[White "Wagner, Dennis"]
[Black "Mortazavi, Ali"]
[WhiteFideId "24650684"]
[BlackFideId "401323"]
[WhiteElo "2355"]
[BlackElo "2339"]
[Result "1-0"]
[Round "03"]
[TimeControl "180+1"]
[Date "2021.10.12"]
[WhiteClock "0:00:14"]
[BlackClock "0:00:01"]

1. e4 {[%clk 0:03:00]}  c6 {[%clk 0:02:56]} 2. d4 {[%clk 0:03:00]}  d5 {[%clk 0:02:56]} 3. e5 {[%clk 0:03:00]}  Bf5 {[%clk 0:02:56]} 4. Nf3 {[%clk 0:03:01]}  e6 {[%clk 0:02:56]} 5. Be2 {[%clk 0:03:02]}  Ne7 {[%clk 0:02:57]} 6. c3 {[%clk 0:03:01]}  Ng6 {[%clk 0:02:56]} 7. O-O {[%clk 0:02:59]}  Nd7 {[%clk 0:02:54]} 8. Ne1 {[%clk 0:02:33]}  h5 {[%clk 0:02:52]} 9. a4 {[%clk 0:02:26]}  h4 {[%clk 0:02:39]} 10. h3 {[%clk 0:02:26]}  Be7 {[%clk 0:02:28]} 11. Na3 {[%clk 0:02:26]}  f6 {[%clk 0:02:24]} 12. f4 {[%clk 0:02:24]}  fxe5 {[%clk 0:02:13]} 13. fxe5 {[%clk 0:02:22]}  O-O {[%clk 0:02:13]} 14. Nac2 {[%clk 0:02:14]}  Bg5 {[%clk 0:01:50]} 15. Bg4 {[%clk 0:02:03]}  Bxg4 {[%clk 0:01:36]} 16. Qxg4 {[%clk 0:02:03]}  Rxf1+ {[%clk 0:01:34]} 17. Kxf1 {[%clk 0:02:04]}  Bxc1 {[%clk 0:01:31]} 18. Qxe6+ {[%clk 0:01:44]}  Kh7 {[%clk 0:01:29]} 19. Rxc1 {[%clk 0:01:44]}  Qg5 {[%clk 0:01:24]} 20. Rd1 {[%clk 0:01:39]}  Rf8+ {[%clk 0:01:20]} 21. Nf3 {[%clk 0:01:32]}  Nb6 {[%clk 0:00:51]} 22. b3 {[%clk 0:01:18]}  Qf4 {[%clk 0:00:36]} 23. Ne1 {[%clk 0:01:07]}  Rf5 {[%clk 0:00:29]} 24. Nd3 {[%clk 0:00:58]}  Qe4 {[%clk 0:00:24]} 25. Nf2 {[%clk 0:00:55]}  Qc2 {[%clk 0:00:19]} 26. Rd2 {[%clk 0:00:42]}  Qb1+ {[%clk 0:00:19]} 27. Rd1 {[%clk 0:00:42]}  Qc2 {[%clk 0:00:19]} 28. Kg1 {[%clk 0:00:31]}  Nf4 {[%clk 0:00:19]} 29. Qe8 {[%clk 0:00:32]}  Ne2+ {[%clk 0:00:13]} 30. Kh2 {[%clk 0:00:32]}  Ng3 {[%clk 0:00:13]} 31. Rd2 {[%clk 0:00:32]}  Qc1 {[%clk 0:00:12]} 32. Rd1 {[%clk 0:00:30]}  Qf4 {[%clk 0:00:12]} 33. Nd3 {[%clk 0:00:27]}  Qh6 {[%clk 0:00:06]} 34. a5 {[%clk 0:00:19]}  Nc4 {[%clk 0:00:02]} 35. bxc4 {[%clk 0:00:19]}  dxc4 {[%clk 0:00:02]} 36. Nc5 {[%clk 0:00:16]}  Qf4 {[%clk 0:00:01]} 37. Ne6 {[%clk 0:00:14]} 1-0


[Site "https://www.chess.com"]

[Event "Titled Tuesday Blitz October 12 2021"]
[White "Zhigalko, Sergei"]
[Black "Karpeshov, Oleg"]
[WhiteFideId "13502956"]
[BlackFideId "4106814"]
[WhiteElo "2662"]
[BlackElo "2354"]
[Result "0-1"]
[Round "03"]
[TimeControl "180+1"]
[Date "2021.10.12"]
[WhiteClock "0:00:01"]
[BlackClock "0:01:19"]

1. e4 {[%clk 0:03:00]}  e6 {[%clk 0:02:58]} 2. d4 {[%clk 0:03:01]}  d5 {[%clk 0:02:58]} 3. e5 {[%clk 0:03:01]}  c5 {[%clk 0:02:58]} 4. c3 {[%clk 0:03:02]}  Nc6 {[%clk 0:02:58]} 5. Nf3 {[%clk 0:03:02]}  Qb6 {[%clk 0:02:58]} 6. a3 {[%clk 0:03:02]}  f6 {[%clk 0:02:58]} 7. Bd3 {[%clk 0:03:01]}  c4 {[%clk 0:02:56]} 8. Bc2 {[%clk 0:03:01]}  fxe5 {[%clk 0:02:56]} 9. dxe5 {[%clk 0:02:54]}  Nh6 {[%clk 0:02:54]} 10. O-O {[%clk 0:02:45]}  Nf7 {[%clk 0:02:54]} 11. Qe2 {[%clk 0:02:44]}  g6 {[%clk 0:02:54]} 12. Re1 {[%clk 0:01:57]}  Bg7 {[%clk 0:02:53]} 13. Ba4 {[%clk 0:01:58]}  O-O {[%clk 0:02:52]} 14. Bxc6 {[%clk 0:01:58]}  bxc6 {[%clk 0:02:51]} 15. Nbd2 {[%clk 0:01:58]}  c5 {[%clk 0:02:43]} 16. h4 {[%clk 0:01:57]}  Bd7 {[%clk 0:02:28]} 17. h5 {[%clk 0:01:47]}  gxh5 {[%clk 0:02:28]} 18. Nf1 {[%clk 0:01:47]}  Nh6 {[%clk 0:02:11]} 19. Ng3 {[%clk 0:01:45]}  Be8 {[%clk 0:02:05]} 20. Ng5 {[%clk 0:01:18]}  Ng4 {[%clk 0:01:50]} 21. Nf3 {[%clk 0:00:27]}  Bg6 {[%clk 0:01:46]} 22. Bg5 {[%clk 0:00:17]}  Rf7 {[%clk 0:01:43]} 23. Qd2 {[%clk 0:00:10]}  Raf8 {[%clk 0:01:41]} 24. Re2 {[%clk 0:00:08]}  Rxf3 {[%clk 0:01:39]} 25. gxf3 {[%clk 0:00:08]}  Nxe5 {[%clk 0:01:35]} 26. Rxe5 {[%clk 0:00:03]}  Bxe5 {[%clk 0:01:34]} 27. Kg2 {[%clk 0:00:03]}  Bg7 {[%clk 0:01:29]} 28. Rh1 {[%clk 0:00:03]}  d4 {[%clk 0:01:28]} 29. Nxh5 {[%clk 0:00:03]}  Qc6 {[%clk 0:01:28]} 30. Qe2 {[%clk 0:00:02]}  Rf5 {[%clk 0:01:23]} 31. Be7 {[%clk 0:00:01]}  Bxh5 {[%clk 0:01:19]} 0-1


[Site "https://www.chess.com"]

[Event "Titled Tuesday Blitz October 12 2021"]
[White "Babazada, Khazar"]
[Black "Kim, Sergey"]
[WhiteFideId "13413554"]
[BlackFideId "13700570"]
[WhiteElo "2302"]
[BlackElo "2527"]
[Result "1-0"]
[Round "04"]
[TimeControl "180+1"]
[Date "2021.10.12"]
[WhiteClock "0:00:48"]
[BlackClock "0:00:01"]

1. Nf3 {[%clk 0:03:00]}  Nf6 {[%clk 0:02:59]} 2. c4 {[%clk 0:03:00]}  g6 {[%clk 0:02:59]} 3. b3 {[%clk 0:03:00]}  Bg7 {[%clk 0:02:59]} 4. Bb2 {[%clk 0:03:01]}  O-O {[%clk 0:02:57]} 5. e3 {[%clk 0:02:59]}  d6 {[%clk 0:02:57]} 6. Be2 {[%clk 0:02:58]}  e5 {[%clk 0:02:57]} 7. d4 {[%clk 0:02:58]}  e4 {[%clk 0:02:57]} 8. Nfd2 {[%clk 0:02:58]}  Re8 {[%clk 0:02:57]} 9. Nc3 {[%clk 0:02:57]}  c6 {[%clk 0:02:54]} 10. Qc2 {[%clk 0:02:57]}  Qe7 {[%clk 0:02:53]} 11. O-O-O {[%clk 0:02:51]}  h5 {[%clk 0:02:47]} 12. a3 {[%clk 0:02:45]}  Nbd7 {[%clk 0:02:42]} 13. b4 {[%clk 0:02:45]}  Nf8 {[%clk 0:02:40]} 14. Nb3 {[%clk 0:02:43]}  Bf5 {[%clk 0:02:37]} 15. Kb1 {[%clk 0:02:43]}  N8h7 {[%clk 0:02:32]} 16. h4 {[%clk 0:02:43]}  Ng4 {[%clk 0:02:26]} 17. Bxg4 {[%clk 0:02:42]}  Bxg4 {[%clk 0:02:26]} 18. Rd2 {[%clk 0:02:40]}  Nf6 {[%clk 0:02:25]} 19. d5 {[%clk 0:02:32]}  Rac8 {[%clk 0:02:15]} 20. dxc6 {[%clk 0:02:28]}  Rxc6 {[%clk 0:02:06]} 21. Na5 {[%clk 0:02:28]}  Rc7 {[%clk 0:02:05]} 22. Nb5 {[%clk 0:02:25]}  Rd7 {[%clk 0:01:48]} 23. Bd4 {[%clk 0:02:09]}  a6 {[%clk 0:01:43]} 24. Nc3 {[%clk 0:02:09]}  Rc8 {[%clk 0:01:32]} 25. Qb2 {[%clk 0:02:04]}  Qe6 {[%clk 0:01:23]} 26. Nd5 {[%clk 0:01:56]}  Ne8 {[%clk 0:01:01]} 27. Bxg7 {[%clk 0:01:55]}  Nxg7 {[%clk 0:01:01]} 28. Nf6+ {[%clk 0:01:55]}  Kh8 {[%clk 0:00:53]} 29. Nxd7 {[%clk 0:01:55]}  Qxd7 {[%clk 0:00:53]} 30. Rhd1 {[%clk 0:01:56]}  Kh7 {[%clk 0:00:41]} 31. Rxd6 {[%clk 0:01:37]}  Qf5 {[%clk 0:00:41]} 32. R1d2 {[%clk 0:01:34]}  Ne8 {[%clk 0:00:23]} 33. R6d5 {[%clk 0:01:30]}  Qe6 {[%clk 0:00:20]} 34. Nxb7 {[%clk 0:01:30]}  Qe7 {[%clk 0:00:17]} 35. Nc5 {[%clk 0:01:30]}  Qxh4 {[%clk 0:00:16]} 36. Nd7 {[%clk 0:01:26]}  Bxd7 {[%clk 0:00:11]} 37. Rxd7 {[%clk 0:01:27]}  Kg8 {[%clk 0:00:09]} 38. Qe5 {[%clk 0:01:25]}  Nf6 {[%clk 0:00:05]} 39. Rd8+ {[%clk 0:01:22]}  Rxd8 {[%clk 0:00:05]} 40. Rxd8+ {[%clk 0:01:23]}  Kg7 {[%clk 0:00:05]} 41. Rd6 {[%clk 0:01:23]}  Qxf2 {[%clk 0:00:03]} 42. b5 {[%clk 0:01:10]}  Qf1+ {[%clk 0:00:02]} 43. Kb2 {[%clk 0:01:03]}  axb5 {[%clk 0:00:02]} 44. c5 {[%clk 0:01:02]}  Qxg2+ {[%clk 0:00:01]} 45. Kb3 {[%clk 0:01:01]}  Qf3 {[%clk 0:00:01]} 46. Qd4 {[%clk 0:00:58]}  h4 {[%clk 0:00:01]} 47. c6 {[%clk 0:00:58]}  h3 {[%clk 0:00:01]} 48. c7 {[%clk 0:00:54]}  h2 {[%clk 0:00:02]} 49. c8=Q {[%clk 0:00:52]}  h1=Q {[%clk 0:00:01]} 50. Qc2 {[%clk 0:00:48]} 1-0


[Site "https://www.chess.com"]

[Event "Titled Tuesday Blitz October 12 2021"]
[White "Bluebaum, Matthias"]
[Black "Stoleriu, George"]
[WhiteFideId "24651516"]
[BlackFideId "1227505"]
[WhiteElo "2681"]
[BlackElo "2199"]
[Result "1-0"]
[Round "04"]
[TimeControl "180+1"]
[Date "2021.10.12"]
[WhiteClock "0:01:41"]
[BlackClock "0:00:05"]

1. d4 {[%clk 0:03:00]}  e6 {[%clk 0:03:00]} 2. Nf3 {[%clk 0:03:01]}  Nf6 {[%clk 0:02:58]} 3. Bf4 {[%clk 0:03:01]}  b6 {[%clk 0:02:57]} 4. e3 {[%clk 0:03:00]}  Bb7 {[%clk 0:02:54]} 5. Bd3 {[%clk 0:03:01]}  d6 {[%clk 0:02:50]} 6. h3 {[%clk 0:03:01]}  Nbd7 {[%clk 0:02:51]} 7. Bh2 {[%clk 0:03:01]}  g6 {[%clk 0:02:51]} 8. c4 {[%clk 0:03:01]}  Bg7 {[%clk 0:02:52]} 9. Nc3 {[%clk 0:03:01]}  O-O {[%clk 0:02:52]} 10. O-O {[%clk 0:03:02]}  Qe7 {[%clk 0:02:51]} 11. e4 {[%clk 0:03:01]}  e5 {[%clk 0:02:52]} 12. Re1 {[%clk 0:03:02]}  exd4 {[%clk 0:02:51]} 13. Nxd4 {[%clk 0:03:03]}  Nc5 {[%clk 0:02:52]} 14. Bc2 {[%clk 0:02:59]}  Rfe8 {[%clk 0:02:52]} 15. f3 {[%clk 0:02:59]}  Nh5 {[%clk 0:02:51]} 16. Qd2 {[%clk 0:02:58]}  Qh4 {[%clk 0:02:44]} 17. Ndb5 {[%clk 0:02:49]}  Re7 {[%clk 0:02:35]} 18. Re2 {[%clk 0:02:15]}  a6 {[%clk 0:02:15]} 19. Nd4 {[%clk 0:02:13]}  Ng3 {[%clk 0:02:14]} 20. Ree1 {[%clk 0:02:07]}  Nh5 {[%clk 0:02:08]} 21. Rad1 {[%clk 0:02:07]}  Rae8 {[%clk 0:02:07]} 22. Qf2 {[%clk 0:02:07]}  Qxf2+ {[%clk 0:02:01]} 23. Kxf2 {[%clk 0:02:08]}  f5 {[%clk 0:02:02]} 24. g4 {[%clk 0:01:57]}  fxg4 {[%clk 0:00:17]} 25. hxg4 {[%clk 0:01:58]}  Nf6 {[%clk 0:00:18]} 26. b4 {[%clk 0:01:52]}  Ncd7 {[%clk 0:00:16]} 27. Bb3 {[%clk 0:01:48]}  Kh8 {[%clk 0:00:15]} 28. Nd5 {[%clk 0:01:44]}  Bxd5 {[%clk 0:00:11]} 29. cxd5 {[%clk 0:01:45]}  Ne5 {[%clk 0:00:09]} 30. Kg2 {[%clk 0:01:44]}  Rf7 {[%clk 0:00:06]} 31. Ne6 {[%clk 0:01:44]}  Nxf3 {[%clk 0:00:06]} 32. Kxf3 {[%clk 0:01:41]}  Nxd5+ {[%clk 0:00:06]} 33. Kg2 {[%clk 0:01:41]}  Rxe6 {[%clk 0:00:05]} 34. Bxd5 {[%clk 0:01:41]} 1-0


[Site "https://www.chess.com"]

[Event "Titled Tuesday Blitz October 12 2021"]
[White "Budrewicz, Krzysztof"]
[Black "Moskalenko, Alexander"]
[WhiteFideId "1127950"]
[BlackFideId "4155351"]
[WhiteElo "2242"]
[BlackElo "2515"]
[Result "0-1"]
[Round "04"]
[TimeControl "180+1"]
[Date "2021.10.12"]
[WhiteClock "0:00:48"]
[BlackClock "0:01:06"]

1. d4 {[%clk 0:03:00]}  Nf6 {[%clk 0:02:59]} 2. c4 {[%clk 0:03:00]}  e6 {[%clk 0:03:00]} 3. Nf3 {[%clk 0:02:59]}  b6 {[%clk 0:03:01]} 4. g3 {[%clk 0:02:59]}  Bb7 {[%clk 0:03:01]} 5. Bg2 {[%clk 0:02:59]}  Be7 {[%clk 0:03:01]} 6. O-O {[%clk 0:02:59]}  O-O {[%clk 0:03:02]} 7. d5 {[%clk 0:03:00]}  exd5 {[%clk 0:03:01]} 8. Nh4 {[%clk 0:02:59]}  c6 {[%clk 0:03:01]} 9. cxd5 {[%clk 0:02:59]}  Nxd5 {[%clk 0:03:02]} 10. Nf5 {[%clk 0:03:00]}  Nc7 {[%clk 0:03:02]} 11. e4 {[%clk 0:03:00]}  d5 {[%clk 0:03:03]} 12. Nc3 {[%clk 0:02:57]}  Bf6 {[%clk 0:03:01]} 13. Bf4 {[%clk 0:02:54]}  d4 {[%clk 0:02:54]} 14. e5 {[%clk 0:02:47]}  dxc3 {[%clk 0:02:52]} 15. exf6 {[%clk 0:02:45]}  Qxf6 {[%clk 0:02:53]} 16. Nd6 {[%clk 0:02:38]}  cxb2 {[%clk 0:02:48]} 17. Rb1 {[%clk 0:02:36]}  Ba6 {[%clk 0:02:47]} 18. Re1 {[%clk 0:02:36]}  Nd5 {[%clk 0:02:47]} 19. Be5 {[%clk 0:02:23]}  Qd8 {[%clk 0:02:26]} 20. Rxb2 {[%clk 0:02:20]}  Nd7 {[%clk 0:02:25]} 21. Bd4 {[%clk 0:01:54]}  N7f6 {[%clk 0:02:16]} 22. Nf5 {[%clk 0:01:54]}  Re8 {[%clk 0:02:12]} 23. Rxe8+ {[%clk 0:01:48]}  Qxe8 {[%clk 0:02:13]} 24. Bxd5 {[%clk 0:01:43]}  Nxd5 {[%clk 0:01:24]} 25. Nxg7 {[%clk 0:01:20]}  Qe4 {[%clk 0:01:24]} 26. f3 {[%clk 0:01:15]}  Qg6 {[%clk 0:01:22]} 27. f4 {[%clk 0:01:00]}  Nxf4 {[%clk 0:01:11]} 28. Qf3 {[%clk 0:00:59]}  Nh3+ {[%clk 0:01:08]} 29. Kg2 {[%clk 0:00:57]}  Ng5 {[%clk 0:01:09]} 30. Qa3 {[%clk 0:00:48]}  Qe4+ {[%clk 0:01:06]} 0-1


[Site "https://www.chess.com"]